bitfinex/quotes_BTCUSD_20241003
["timestamp","ask_amount","ask_price","bid_price","bid_amount"]
[1727957967843,0.02583901,60670.0,60667.0,0.164834]
[1727957968076,0.0002699,60672.0,60668.0,0.16483]
[1727957968077,0.1002699,60672.0,60668.0,0.16483]
[1727957968304,0.1002699,60672.0,60667.0,0.164833]
[1727957968305,0.164824,60671.0,60667.0,0.164833]
[1727957968542,0.164813,60675.0,60670.0,0.164824]
[1727957968776,0.0002699,60676.0,60670.0,0.164824]
[1727957968777,0.24767802,60676.0,60674.0,0.164814]
[1727957969054,0.24767802,60676.0,60675.0,0.164812]
[1727957969294,0.329598,60680.0,60674.0,0.164813]
[1727957969546,0.164802,60679.0,60674.0,0.164813]
[1727957969784,0.164802,60679.0,60670.0,0.1681]
[1727957969785,0.164808,60677.0,60672.0,0.16482]
[1727957970040,0.164823,60671.0,60670.0,0.1681]
[1727957970321,0.164823,60671.0,60663.0,0.0773]
[1727957970322,0.0002699,60665.0,60663.0,0.0773]
[1727957970527,0.18820915,60671.0,60663.0,0.0773]
[1727957970528,0.0002699,60669.0,60663.0,0.0773]
[1727957970764,0.164842,60664.0,60663.0,0.0773]
[1727957970996,0.164839,60665.0,60663.0,0.0773]
[1727957971234,0.0002699,60669.0,60663.0,0.0773]
[1727957971460,0.0002699,60666.0,60664.0,0.164841]
[1727957971749,0.0002699,60664.0,60663.0,0.0773]
[1727957972001,0.0002699,60662.0,60660.0,0.0941]
[1727957972214,0.1651199,60661.0,60660.0,0.0941]
[1727957972711,0.0002699,60661.0,60660.0,0.0941]
[1727957972934,0.494538,60663.0,60658.0,0.164857]
[1727957972935,0.0002699,60659.0,60658.0,0.164857]
[1727957973654,0.0002699,60659.0,60656.0,0.406923]
[1727957973655,0.0002699,60659.0,60656.0,0.0772]
[1727957973881,0.0002699,60659.0,60652.0,0.0982]
[1727957973882,0.164864,60656.0,60652.0,0.263073]
[1727957974142,0.0002699,60655.0,60652.0,0.0982]
[1727957974398,0.0002699,60656.0,60653.0,0.164871]
[1727957974632,0.0002699,60657.0,60653.0,0.329744]
[1727957974875,0.21460689,60659.0,60656.0,0.014]
[1727957975125,0.04948099,60659.0,60656.0,0.178862]
[1727957975376,0.1651229,60661.0,60656.0,0.178862]
[1727957975377,0.02584251,60657.0,60656.0,0.164863]
[1727957975610,0.02584251,60657.0,60653.0,0.329744]
[1727957975611,0.164842,60664.0,60660.0,0.16485]
[1727957975847,0.24767802,60665.0,60661.0,0.164848]
[1727957976072,0.164842,60664.0,60661.0,0.164848]
[1727957976307,0.0002699,60662.0,60661.0,0.164848]
[1727957976539,0.164831,60668.0,60662.0,0.164845]
[1727957976796,0.24767802,60665.0,60655.0,0.023]
[1727957977038,0.329665,60668.0,60655.0,0.023]
[1727957977039,0.164852,60661.0,60660.0,0.008]
[1727957977969,0.1651169,60663.0,60662.0,0.008]
[1727957978197,0.1651149,60663.0,60659.0,0.164853]
[1727957978425,0.0002699,60663.0,60660.0,0.164853]
[1727957978650,0.0002699,60663.0,60660.0,0.014]
[1727957978883,0.0002699,60663.0,60650.0,0.030819]
[1727957978884,0.02584129,60663.0,60653.0,0.023]
[1727957979132,0.02611119,60663.0,60662.0,0.177847]
[1727957979621,0.19095619,60663.0,60662.0,0.013]
[1727957980067,0.1651149,60663.0,60662.0,0.013]
[1727957980562,0.0002699,60663.0,60662.0,0.013]
[1727957980787,0.1651149,60663.0,60662.0,0.013]
[1727957981012,0.1651149,60663.0,60657.0,0.329718]
[1727957981235,0.164848,60662.0,60659.0,0.164855]
[1727957981460,0.164848,60662.0,60660.0,0.013]
[1727957981679,0.4948089,60663.0,60659.0,0.164855]
[1727957981871,0.1651159,60663.0,60659.0,0.164855]
[1727957982133,0.1651159,60663.0,60662.0,0.013]
[1727957982356,0.1651159,60663.0,60662.0,0.009]
[1727957982583,0.0002699,60663.0,60662.0,0.009]
[1727957982813,0.0002699,60663.0,60661.0,0.164848]
[1727957983092,0.0002699,60663.0,60659.0,0.343707]
[1727957983093,0.0002699,60663.0,60660.0,0.164852]
[1727957983318,0.02611092,60663.0,60660.0,0.164852]
[1727957983539,0.0002699,60663.0,60660.0,0.164852]
[1727957983777,0.0002699,60663.0,60657.0,0.023]
[1727957984009,0.1651159,60663.0,60662.0,0.009]
[1727957984957,0.24756389,60663.0,60662.0,0.009]
[1727957985447,0.24756389,60663.0,60662.0,0.022]
[1727957985983,0.24756389,60663.0,60662.0,0.013]
[1727957986452,0.19095829,60663.0,60662.0,0.013]
[1727957987170,0.19095829,60663.0,60662.0,0.022]
[1727957987648,0.1651159,60663.0,60662.0,0.022]
[1727957988117,0.1651159,60663.0,60662.0,0.1047]
[1727957988118,0.0002699,60663.0,60662.0,0.1047]
[1727957988652,0.001636,60664.0,60663.0,0.164845]
[1727957989353,0.001636,60664.0,60662.0,0.1047]
[1727957989577,0.001636,60664.0,60662.0,0.0957]
[1727957989801,0.001636,60664.0,60662.0,0.0827]
[1727957990020,0.001636,60664.0,60663.0,0.008]
[1727957990203,0.001636,60664.0,60663.0,0.02]
[1727957990443,0.001636,60664.0,60663.0,0.012]
[1727957990676,0.001636,60664.0,60663.0,0.176845]
[1727957990925,0.02747644,60664.0,60663.0,0.012]
[1727957991598,0.02747644,60664.0,60662.0,0.247546]
[1727957991834,0.25003753,60663.0,60662.0,0.02]
[1727957992327,0.25003753,60663.0,60662.0,0.012]
[1727957992573,0.001636,60664.0,60663.0,0.008]
[1727957992802,0.166478,60664.0,60663.0,0.008]
[1727957993034,0.166478,60664.0,60663.0,0.02]
[1727957993264,0.331323,60664.0,60654.0,0.24767802]
[1727957993531,0.331323,60664.0,60663.0,0.164845]
[1727957993532,0.001636,60664.0,60663.0,0.164845]
[1727957993742,0.001636,60664.0,60663.0,0.33924144]
[1727957993986,0.001636,60664.0,60663.0,0.335945]
[1727957995809,0.001636,60664.0,60663.0,0.357945]
[1727957996313,0.001636,60664.0,60663.0,0.349945]
[1727957996555,0.001636,60664.0,60663.0,0.362945]
[1727957996775,0.001636,60664.0,60663.0,0.348945]
[1727957997005,0.001636,60664.0,60663.0,0.362945]
[1727958000939,0.166478,60664.0,60663.0,0.027]
[1727958001304,0.2160928,60664.0,60663.0,0.027]
[1727958001422,0.480508,60664.0,60663.0,0.027]
[1727958001663,0.50514655,60664.0,60663.0,0.027]
[1727958002170,0.50514655,60664.0,60663.0,0.014]
[1727958002396,0.50514655,60664.0,60650.0,0.030819]
[1727958002397,0.164867,60655.0,60651.0,0.165695]
[1727958002874,0.02584452,60655.0,60651.0,0.33057]
[1727958003369,0.02584452,60655.0,60654.0,0.164869]
[1727958003611,0.02584452,60655.0,60654.0,0.256469]
[1727958003858,0.001636,60664.0,60655.0,0.023]
[1727958004090,0.001636,60664.0,60663.0,0.164845]
[1727958005532,0.001636,60664.0,60663.0,0.16814153]
[1727958005774,0.001636,60664.0,60663.0,0.33864153]
[1727958006026,0.001636,60664.0,60663.0,0.335345]
[1727958006261,0.001636,60664.0,60663.0,0.349345]
[1727958006500,0.001636,60664.0,60663.0,0.335345]
[1727958006732,0.001636,60664.0,60663.0,0.349345]
[1727958006965,0.001636,60664.0,60663.0,0.348345]
[1727958007927,0.001636,60664.0,60663.0,0.88592757]
[1727958008390,0.001636,60664.0,60663.0,0.87292757]
[1727958008615,0.001636,60664.0,60663.0,0.88692757]
[1727958009290,0.001636,60664.0,60663.0,0.53553171]
[1727958009516,0.083736,60664.0,60663.0,0.52153171]
[1727958009749,0.083736,60664.0,60663.0,0.54953171]
[1727958010273,0.083736,60664.0,60663.0,0.363345]
[1727958010722,0.083736,60664.0,60663.0,0.349345]
[1727958010954,0.083736,60664.0,60663.0,0.178845]
[1727958011185,0.0921096,60664.0,60663.0,0.178845]
[1727958011645,0.0921096,60664.0,60663.0,0.164845]
[1727958011869,0.0921096,60664.0,60663.0,0.178845]
[1727958012347,0.083736,60664.0,60663.0,0.178845]
[1727958012801,0.083736,60664.0,60663.0,0.192845]
[1727958013245,0.083736,60664.0,60663.0,0.178845]
[1727958013474,0.083736,60664.0,60663.0,0.164845]
[1727958013700,0.083736,60664.0,60663.0,0.178845]
[1727958013931,0.083736,60664.0,60663.0,0.52541623]
[1727958014186,0.083736,60664.0,60663.0,0.70411623]
[1727958014639,0.083736,60664.0,60663.0,0.81908983]
[1727958015577,0.083736,60664.0,60663.0,0.79308983]
[1727958015816,0.24767802,60678.0,60663.0,0.79308983]
[1727958015817,0.24767802,60678.0,60677.0,0.164807]
[1727958016504,0.001636,60682.0,60680.0,0.164797]
[1727958017189,0.001636,60682.0,60681.0,0.164796]
[1727958017429,0.0019059,60682.0,60681.0,0.164796]
[1727958017660,0.001636,60682.0,60681.0,0.164796]
[1727958019768,0.001636,60682.0,60681.0,0.170796]
[1727958020008,0.001636,60682.0,60681.0,0.180796]
[1727958020753,0.02746561,60682.0,60681.0,0.30780047]
[1727958020973,0.02746561,60682.0,60681.0,0.46769186]
[1727958020974,0.001636,60682.0,60681.0,0.46769186]
[1727958021653,0.001636,60682.0,60681.0,0.46169186]
[1727958022098,0.001636,60682.0,60681.0,0.46069186]
[1727958022576,0.001636,60682.0,60681.0,0.46569186]
[1727958022812,0.001636,60682.0,60681.0,0.45169186]
[1727958023046,0.001636,60682.0,60681.0,0.46569186]
[1727958023287,0.001636,60682.0,60681.0,0.47969186]
[1727958023500,0.001636,60682.0,60681.0,0.46569186]
[1727958024197,0.001636,60682.0,60681.0,0.47388807]
[1727958024923,0.001636,60682.0,60681.0,0.48788807]
[1727958025400,0.001636,60682.0,60681.0,0.45988807]
[1727958025655,0.001636,60682.0,60681.0,0.47388807]
[1727958025892,0.001636,60682.0,60681.0,0.48788807]
[1727958026123,0.001636,60682.0,60681.0,0.47388807]
[1727958026406,0.001636,60682.0,60681.0,0.178796]
[1727958026623,0.001636,60682.0,60681.0,0.192796]
[1727958027077,0.001636,60682.0,60681.0,0.028]
[1727958027314,0.001636,60682.0,60681.0,0.014]
[1727958028000,0.001636,60682.0,60680.0,0.164798]
[1727958028460,0.001636,60682.0,60681.0,0.178796]
[1727958028683,0.001636,60682.0,60681.0,0.028]
[1727958028916,0.2095884,60682.0,60681.0,0.014]
[1727958029148,0.2095884,60682.0,60681.0,0.02]
[1727958029615,0.19226115,60682.0,60681.0,0.006]
[1727958030073,0.166429,60682.0,60681.0,0.006]
[1727958030314,0.1666989,60682.0,60681.0,0.006]
[1727958030543,0.1666989,60682.0,60681.0,0.016]
[1727958031447,0.24928409,60682.0,60681.0,0.016]
[1727958031687,0.1666989,60682.0,60681.0,0.02010033]
[1727958031914,0.1666989,60682.0,60681.0,0.016]
[1727958032449,0.001636,60682.0,60681.0,0.016]
[1727958032675,0.001636,60682.0,60681.0,0.180796]
[1727958032903,0.001636,60682.0,60681.0,0.18484321]
[1727958033134,0.02746817,60682.0,60681.0,0.18484321]
[1727958033393,0.02746817,60682.0,60681.0,0.17484321]
[1727958033622,0.02746817,60682.0,60681.0,0.26564321]
[1727958033841,0.02746817,60682.0,60681.0,0.17484321]
[1727958034750,0.02746817,60682.0,60681.0,0.65759178]
[1727958034751,0.001636,60682.0,60681.0,0.65759178]
[1727958034988,0.001636,60682.0,60681.0,0.65429624]
[1727958035459,0.001636,60682.0,60681.0,0.66829624]
[1727958035702,0.001636,60682.0,60681.0,0.66793383]
[1727958035957,0.001636,60682.0,60681.0,0.78693383]
[1727958036190,0.001636,60682.0,60681.0,0.79293383]
[1727958036434,0.001636,60682.0,60681.0,0.77893383]
[1727958036695,0.001636,60682.0,60681.0,0.78693383]
[1727958036926,0.001636,60682.0,60681.0,0.77466393]
[1727958037155,0.001636,60682.0,60681.0,0.78866393]
[1727958037377,0.001636,60682.0,60681.0,0.80266393]
[1727958038337,0.001636,60682.0,60681.0,0.81087093]
[1727958038586,0.001636,60682.0,60681.0,0.77614083]
[1727958038819,0.001636,60682.0,60681.0,0.77607894]
[1727958039039,0.001636,60682.0,60681.0,0.78450324]
[1727958039263,0.001636,60682.0,60681.0,0.67150324]
[1727958039483,0.001636,60682.0,60681.0,0.66250324]
[1727958039723,0.001636,60682.0,60681.0,0.69050324]
[1727958039918,0.001636,60682.0,60681.0,0.67650324]
[1727958041147,0.001636,60682.0,60681.0,0.19105021]
[1727958041391,0.001636,60682.0,60681.0,0.18284321]
[1727958042518,0.001636,60682.0,60681.0,0.19684321]
[1727958042758,0.001636,60682.0,60681.0,0.18284321]
[1727958042999,0.001636,60682.0,60681.0,0.18084321]
[1727958043230,0.001636,60682.0,60681.0,0.19484321]
[1727958046960,0.001636,60682.0,60681.0,0.39219434]
[1727958047202,0.001636,60682.0,60681.0,0.38930953]
[1727958047709,0.001636,60682.0,60681.0,0.48930953]
[1727958049342,0.001636,60682.0,60681.0,0.49752669]
[1727958049581,0.001636,60682.0,60681.0,0.6577134]
[1727958049795,0.001636,60682.0,60681.0,0.92239142]
[1727958050019,0.001636,60682.0,60681.0,0.6747134]
[1727958050272,0.001636,60682.0,60681.0,0.6767134]
[1727958050513,0.001636,60682.0,60681.0,0.6907134]
[1727958051686,0.001636,60682.0,60681.0,0.48230953]
[1727958051952,0.001636,60682.0,60681.0,0.46830953]
[1727958052197,0.001636,60682.0,60681.0,0.48230953]
[1727958052917,0.001636,60682.0,60681.0,0.40120953]
[1727958053174,0.001636,60682.0,60681.0,0.03204721]
[1727958053175,0.166429,60682.0,60681.0,0.03204721]
[1727958053395,0.1666989,60682.0,60681.0,0.03204721]
[1727958053860,0.1666989,60682.0,60681.0,0.028]
[1727958053861,0.166429,60682.0,60681.0,0.028]
[1727958054079,0.19253193,60682.0,60681.0,0.028]
[1727958054516,0.33917674,60682.0,60681.0,0.028]
[1727958054994,0.0002699,60672.0,60667.0,0.24767802]
[1727958055236,0.164817,60674.0,60667.0,0.24767802]
[1727958055466,0.18820915,60679.0,60667.0,0.24767802]
[1727958055467,0.0002699,60677.0,60668.0,0.00422852]
[1727958055691,0.0002699,60672.0,60668.0,0.00422852]
[1727958056158,0.164818,60673.0,60668.0,0.00422852]
[1727958056399,0.0002699,60674.0,60668.0,0.00422852]
[1727958056400,0.1650859,60674.0,60668.0,0.00422852]
[1727958056635,0.0002699,60672.0,60667.0,0.005]
[1727958056823,0.0002699,60672.0,60664.0,0.000818]
[1727958057091,0.1651089,60666.0,60664.0,0.000818]
[1727958057326,0.1651089,60666.0,60665.0,0.00475757]
[1727958057327,0.1651059,60666.0,60665.0,0.00475757]
[1727958057786,0.1651089,60665.0,60664.0,0.000818]
[1727958058749,0.19094917,60665.0,60664.0,0.000818]
[1727958058994,0.38531047,60665.0,60664.0,0.000818]
[1727958059245,0.38531047,60665.0,60664.0,0.012818]
[1727958059471,0.35413588,60665.0,60664.0,0.012818]
[1727958059708,0.35413588,60665.0,60664.0,0.020818]
[1727958061171,0.19094917,60665.0,60664.0,0.020818]
[1727958063076,0.1651089,60665.0,60664.0,0.020818]
[1727958063784,0.164839,60665.0,60664.0,0.020818]
[1727958064017,0.1651089,60665.0,60664.0,0.020818]
[1727958065426,0.19094963,60665.0,60664.0,0.020818]
[1727958066177,0.19067973,60665.0,60664.0,0.020818]
[1727958066409,0.19067973,60665.0,60664.0,0.0311498]
[1727958066410,0.02584073,60665.0,60664.0,0.0311498]
[1727958066647,0.164826,60671.0,60664.0,0.03597186]
[1727958066648,0.164832,60668.0,60664.0,0.03597186]
[1727958066871,0.32965,60671.0,60664.0,0.03597186]
[1727958066872,0.164826,60670.0,60664.0,0.03597186]
[1727958067103,0.164839,60665.0,60664.0,0.02564006]
[1727958067353,0.1651089,60665.0,60664.0,0.02564006]
[1727958067582,0.1651089,60665.0,60664.0,0.012818]
[1727958067822,0.1651089,60665.0,60664.0,0.021818]
[1727958068721,0.1651089,60665.0,60664.0,0.009818]
[1727958068941,0.164839,60665.0,60664.0,0.009818]
[1727958069412,0.164839,60665.0,60664.0,0.000818]
[1727958069635,0.164839,60665.0,60664.0,0.021818]
[1727958069636,0.1651089,60665.0,60664.0,0.021818]
[1727958069875,0.1651089,60665.0,60664.0,0.008818]
[1727958070355,0.1667449,60665.0,60664.0,0.020818]
[1727958074246,0.19258472,60665.0,60664.0,0.020818]
[1727958077049,0.31074289,60665.0,60664.0,0.020818]
[1727958077963,0.19258472,60665.0,60664.0,0.020818]
[1727958083298,0.35577143,60665.0,60664.0,0.020818]
[1727958085464,0.19258472,60665.0,60664.0,0.020818]
[1727958086371,0.19258472,60665.0,60664.0,0.02518491]
[1727958087783,0.19258472,60665.0,60664.0,0.020818]
[1727958087784,0.35577143,60665.0,60664.0,0.020818]
[1727958088007,0.56104849,60665.0,60664.0,0.020818]
[1727958088251,0.61340867,60665.0,60664.0,0.020818]
[1727958088932,0.45990388,60665.0,60664.0,0.012818]
[1727958089178,0.45990388,60665.0,60664.0,0.000818]
[1727958089637,0.45990388,60665.0,60664.0,0.001818]
[1727958092214,0.55990388,60665.0,60664.0,0.001818]
[1727958092724,0.72509059,60665.0,60664.0,0.001818]
[1727958093194,0.79849687,60665.0,60664.0,0.001818]
[1727958093429,0.79849687,60665.0,60664.0,0.000818]
[1727958093430,0.77401758,60665.0,60664.0,0.000818]
[1727958093652,0.77401758,60665.0,60664.0,0.001818]
[1727958093653,0.72809059,60665.0,60664.0,0.001818]
[1727958093907,0.77403241,60665.0,60664.0,0.000818]
[1727958094406,0.72809059,60665.0,60664.0,0.002818]
[1727958094619,0.77703241,60665.0,60664.0,0.002818]
[1727958095106,0.73009059,60665.0,60664.0,0.002818]
[1727958095339,0.77904076,60665.0,60664.0,0.002818]
[1727958095583,0.72809059,60665.0,60664.0,0.001818]
[1727958095823,0.72809059,60665.0,60651.0,0.24849602]
[1727958095824,0.1651449,60652.0,60651.0,0.24849602]
[1727958096051,0.74898431,60652.0,60651.0,0.24849602]
[1727958096274,0.74898431,60652.0,60651.0,0.00550432]
[1727958096497,0.74898431,60652.0,60651.0,0.000818]
[1727958097405,0.99866233,60652.0,60651.0,0.000818]
[1727958097650,0.81826406,60652.0,60651.0,0.000818]
[1727958099289,0.81826406,60652.0,60651.0,0.001818]
[1727958099290,0.81626406,60652.0,60651.0,0.001818]
[1727958099534,0.1671609,60646.0,60645.0,0.00082]
[1727958099770,0.91218471,60646.0,60645.0,0.00082]
[1727958099961,1.00188702,60646.0,60645.0,0.00082]
[1727958100246,1.02774216,60646.0,60645.0,0.00082]
[1727958100490,1.00188702,60646.0,60645.0,0.00082]
[1727958100721,1.09986622,60646.0,60645.0,0.00082]
[1727958101194,1.03088702,60646.0,60645.0,1e-06]
[1727958102399,0.0022699,60634.0,60618.0,0.24767802]
[1727958102636,0.77003231,60634.0,60618.0,0.24767802]
[1727958102876,0.77003231,60634.0,60633.0,0.00473122]
[1727958102877,0.85053231,60634.0,60633.0,0.00473122]
[1727958103124,0.2672099,60628.0,60626.0,0.24767802]
[1727958103369,0.7731432,60628.0,60626.0,0.24767802]
[1727958103610,0.7711432,60628.0,60626.0,0.24767802]
[1727958103846,0.797003,60628.0,60618.0,0.24767802]
[1727958104576,0.46825641,60628.0,60618.0,0.24767802]
[1727958104821,0.65653684,60628.0,60618.0,0.24767802]
[1727958105502,0.65653684,60628.0,60619.0,0.24767802]
[1727958105997,0.64253684,60628.0,60619.0,0.24767802]
[1727958106233,0.64753684,60628.0,60619.0,0.24767802]
[1727958106499,0.64753684,60628.0,60621.0,0.099319]
[1727958106500,0.54753684,60628.0,60621.0,0.099319]
[1727958106730,0.2030697,60628.0,60625.0,0.0778]
[1727958107211,0.1910697,60628.0,60625.0,0.0778]
[1727958107440,0.32916351,60628.0,60625.0,0.0778]
[1727958107660,0.1920697,60628.0,60625.0,0.0778]
[1727958108386,0.1920697,60628.0,60627.0,0.00508178]
[1727958108607,0.1920697,60628.0,60627.0,0.000819]
[1727958108851,0.1920697,60628.0,60627.0,0.00508178]
[1727958109081,0.1910697,60628.0,60627.0,0.000819]
[1727958109808,0.1920697,60628.0,60627.0,0.002819]
[1727958110334,0.1930697,60628.0,60627.0,0.002819]
[1727958110601,0.0278598,60628.0,60627.0,0.002819]
[1727958110841,0.0278598,60628.0,60627.0,0.27081526]
[1727958111091,0.0278598,60628.0,60627.0,0.2698605]
[1727958111329,0.0278598,60628.0,60627.0,0.27411376]
[1727958111330,0.002,60628.0,60627.0,0.27411376]
[1727958111548,0.001,60628.0,60627.0,0.27411376]
[1727958112484,0.001,60628.0,60627.0,0.86214278]
[1727958112699,0.001,60628.0,60627.0,0.86057438]
[1727958112925,0.001,60628.0,60627.0,0.67056385]
[1727958113151,0.24794792,60638.0,60636.0,0.164917]
[1727958113669,0.0002699,60638.0,60637.0,0.00422964]
[1727958114385,0.19103401,60638.0,60637.0,0.00422964]
[1727958114595,0.164915,60637.0,60636.0,0.007]
[1727958114813,0.164915,60637.0,60632.0,0.164928]
[1727958115031,0.164915,60637.0,60636.0,0.0042298]
[1727958115271,0.35694701,60638.0,60630.0,0.57754202]
[1727958115272,0.02712101,60638.0,60630.0,0.57754202]
[1727958115484,0.02685111,60638.0,60636.0,0.0042298]
[1727958115703,0.02685111,60638.0,60633.0,0.32985]
[1727958115704,0.001,60638.0,60633.0,0.32985]
[1727958115905,0.06708929,60638.0,60637.0,0.00422964]
[1727958116049,0.001,60638.0,60637.0,0.00422964]
[1727958116270,0.165913,60638.0,60637.0,0.01222964]
[1727958116469,0.164913,60638.0,60637.0,0.00422964]
[1727958116680,0.164913,60638.0,60635.0,0.16492]
[1727958116681,0.164913,60638.0,60636.0,0.007]
[1727958116899,0.164913,60638.0,60637.0,0.00422964]
[1727958117311,0.001,60638.0,60635.0,0.16492]
[1727958117541,0.1671829,60638.0,60637.0,0.01117372]
[1727958117744,0.1671829,60638.0,60637.0,0.007]
[1727958117946,0.167549,60638.0,60637.0,0.01117372]
[1727958118149,0.1678189,60638.0,60637.0,0.00417372]
[1727958118362,0.25056309,60638.0,60637.0,0.00417372]
[1727958118916,0.0002699,60637.0,60636.0,0.008]
[1727958119274,0.0002699,60637.0,60636.0,0.01217388]
[1727958119275,0.1651849,60637.0,60636.0,0.01217388]
[1727958119704,0.1688189,60638.0,60636.0,0.01217388]
[1727958119913,0.1688189,60638.0,60636.0,0.00417388]
[1727958120130,0.1688189,60638.0,60637.0,0.164915]
[1727958120131,0.002636,60638.0,60637.0,0.164915]
[1727958120374,0.002636,60638.0,60637.0,0.246215]
[1727958120605,0.002636,60638.0,60637.0,0.25838872]
[1727958121066,0.002636,60638.0,60637.0,0.09347372]
[1727958121294,0.1678189,60638.0,60637.0,0.01217372]
[1727958121532,0.1678189,60638.0,60637.0,0.008]
[1727958122221,0.1678189,60638.0,60637.0,0.01217372]
[1727958122677,0.1678189,60638.0,60637.0,0.008]
[1727958123625,0.002636,60638.0,60637.0,0.172915]
[1727958123855,0.02948671,60638.0,60637.0,0.36031288]
[1727958124082,0.02948671,60638.0,60637.0,0.36118872]
[1727958124582,0.02948671,60638.0,60637.0,0.70127654]
[1727958124853,0.24767802,60657.0,60637.0,0.70127654]
[1727958124854,0.24767802,60649.0,60648.0,0.32977]
[1727958125068,0.24767802,60649.0,60648.0,0.49882086]
[1727958125296,0.24767802,60657.0,60648.0,0.49882086]
[1727958125297,0.24767802,60657.0,60648.0,0.00416586]
[1727958125534,0.001636,60665.0,60655.0,0.164865]
[1727958125535,0.41253402,60659.0,60655.0,0.164865]
[1727958125735,0.24794792,60659.0,60652.0,0.0769]
[1727958125946,0.18991643,60665.0,60648.0,0.164885]
[1727958125947,0.0002699,60649.0,60648.0,0.164885]
[1727958126177,0.0002699,60651.0,60648.0,0.164885]
[1727958126396,0.164872,60653.0,60648.0,0.00416586]
[1727958126602,0.164875,60652.0,60649.0,0.164883]
[1727958127032,0.3300119,60654.0,60648.0,0.00416586]
[1727958127033,0.164877,60651.0,60650.0,0.00416554]
[1727958127477,0.329755,60651.0,60650.0,0.00416554]
[1727958127724,0.0002699,60647.0,60646.0,0.0802]
[1727958127945,0.1651649,60645.0,60644.0,0.24767802]
[1727958128400,0.02611692,60645.0,60642.0,0.164902]
[1727958128868,0.02611692,60645.0,60639.0,0.0811]
[1727958129089,0.164905,60641.0,60639.0,0.0811]
[1727958129295,0.02611692,60645.0,60639.0,0.0811]
[1727958129296,0.0002699,60640.0,60639.0,0.0811]
[1727958129545,0.02611692,60645.0,60639.0,0.0811]
[1727958129761,0.0002699,60640.0,60639.0,0.0811]
[1727958130220,0.329795,60644.0,60639.0,0.0811]
[1727958130221,0.0002699,60641.0,60639.0,0.0811]
[1727958130709,0.0002699,60641.0,60635.0,0.423238]
[1727958130710,0.1651739,60641.0,60640.0,0.00412545]
[1727958130931,0.495725,60640.0,60639.0,0.013]
[1727958131174,0.001,60640.0,60639.0,0.013]
[1727958131385,0.0002699,60641.0,60639.0,0.01412561]
[1727958131386,0.1661749,60641.0,60639.0,0.01412561]
[1727958131602,0.0012699,60641.0,60639.0,0.02712561]
[1727958131812,0.001,60641.0,60639.0,0.19203361]
[1727958132027,0.164901,60643.0,60640.0,0.164907]
[1727958132284,0.02584702,60645.0,60641.0,0.24767802]
[1727958132515,0.02584702,60645.0,60644.0,0.336396]
[1727958132707,0.1651379,60655.0,60648.0,0.329771]
[1727958132916,0.24767802,60652.0,60651.0,0.164877]
[1727958133132,0.0002699,60655.0,60651.0,0.164877]
[1727958133133,0.329738,60655.0,60651.0,0.00414086]
[1727958133368,0.164872,60653.0,60651.0,0.00414086]
[1727958133607,0.0002699,60656.0,60651.0,0.00414086]
[1727958133873,0.0002699,60656.0,60650.0,0.164879]
[1727958133874,0.164873,60653.0,60650.0,0.164879]
[1727958134100,0.0002699,60656.0,60652.0,0.24767802]
[1727958134323,0.0002699,60656.0,60649.0,0.329762]
[1727958134324,0.164869,60654.0,60653.0,0.00414054]
[1727958134766,0.164869,60654.0,60651.0,0.165877]
[1727958134767,0.0002699,60654.0,60651.0,0.165877]
[1727958134990,0.0002699,60654.0,60653.0,0.00414054]
[1727958135203,0.0002699,60654.0,60652.0,0.0041407]
[1727958135416,0.1651369,60655.0,60653.0,0.00414054]
[1727958135670,0.02684488,60654.0,60653.0,0.01014054]
[1727958135848,0.02711478,60654.0,60653.0,0.006]
[1727958136062,0.02711478,60654.0,60653.0,0.01014054]
[1727958136715,0.19198378,60654.0,60653.0,0.02114054]
[1727958136974,0.44047607,60654.0,60653.0,0.02114054]
[1727958137399,0.44047607,60654.0,60653.0,0.011]
[1727958137400,0.43947607,60654.0,60653.0,0.011]
[1727958137638,0.164888,60647.0,60646.0,0.24767802]
[1727958138068,0.164888,60647.0,60646.0,0.00411709]
[1727958138322,0.164891,60646.0,60644.0,0.0797]
[1727958138560,0.02584661,60647.0,60645.0,0.00411725]
[1727958138782,0.1651609,60646.0,60645.0,0.00411725]
[1727958139000,0.25021535,60646.0,60645.0,0.00411725]
[1727958139249,0.25021535,60646.0,60631.0,0.0784]
[1727958139250,0.0002699,60637.0,60631.0,0.0784]
[1727958139493,0.1651929,60634.0,60631.0,0.0784]
[1727958139931,0.0002699,60634.0,60631.0,0.0784]
[1727958140146,0.0002699,60632.0,60631.0,0.0784]
[1727958140393,0.0002699,60632.0,60631.0,0.243332]
[1727958140820,0.32983,60638.0,60633.0,0.014]
[1727958140821,0.0002699,60634.0,60633.0,0.014]
[1727958141237,0.32983,60638.0,60631.0,0.0784]
[1727958141238,0.0002699,60632.0,60631.0,0.0784]
[1727958141455,0.0002699,60632.0,60631.0,0.243332]
[1727958142131,0.02612181,60632.0,60631.0,0.243332]
[1727958142377,0.0002699,60632.0,60631.0,0.243332]
[1727958142604,0.0002699,60632.0,60631.0,0.257332]
[1727958142821,0.0012699,60632.0,60631.0,0.1064]
[1727958143054,0.21580249,60632.0,60631.0,0.028]
[1727958143937,0.1661989,60632.0,60631.0,0.014]
[1727958144170,0.32938561,60632.0,60631.0,0.028]
[1727958144659,0.32838561,60632.0,60631.0,0.014]
[1727958144875,0.63865131,60632.0,60631.0,0.014]
[1727958145111,0.69134424,60632.0,60631.0,0.026]
[1727958145542,0.69034424,60632.0,60621.0,0.000819]
[1727958145764,0.45349033,60628.0,60621.0,0.000819]
[1727958145998,0.71020448,60628.0,60621.0,0.000819]
[1727958146232,0.76188247,60628.0,60621.0,0.000819]
[1727958146460,0.71020448,60628.0,60621.0,0.000819]
[1727958147124,0.71020448,60628.0,60627.0,0.001819]
[1727958147125,0.71520448,60628.0,60627.0,0.001819]
[1727958147562,0.71020448,60628.0,60627.0,0.000819]
[1727958147782,0.71020448,60628.0,60627.0,0.001819]
[1727958148239,0.2652099,60628.0,60627.0,0.000819]
[1727958148459,0.1652099,60628.0,60627.0,0.000819]
[1727958148674,0.1692099,60628.0,60627.0,0.000819]